{"text_format":"1","workbook":"xlsx","n_sheets":4,"sheets":["PAGO","PAGO (2)","DATOS","PROVINCIAS"],"not_rendered":{"charts":0,"images":2,"macros":1,"external_links":0,"defined_names":3,"comments":0,"pivot_tables":0},"unopened":[],"bounds":{"document_bytes":16777216,"sheet_cells":100000,"rows_first":2000,"rows_last":500,"rows_between":2000,"halvings":0,"cell_chars":16384,"cell_head_chars":4096},"cells_cut":0,"cells_raw":0,"read":"whole","date_system":"1900"}

{"sheet":"PAGO","index":0,"n_rows":63,"n_cols":21,"rows_kept":63,"cut":false,"hidden":false,"merged":[[3,15,3,19],[36,19,36,22],[46,6,46,23],[48,15,48,24],[61,18,61,23],[8,5,8,6],[11,1,11,8],[11,10,11,17],[11,19,11,23],[8,13,8,19],[14,1,14,23],[17,1,17,9],[17,12,17,18],[17,20,17,23],[20,1,20,5],[20,7,20,12],[20,14,20,23],[24,1,24,5],[48,1,48,4],[48,5,48,8],[48,9,48,12],[48,13,48,14],[33,6,33,9],[37,6,37,9],[24,7,24,8],[24,10,24,23],[39,1,41,23]]}
[]
[]
[]
[null,null,null,null,null,null,null,null,null,null,"AÑO ACADÉMICO: "]
[]
[null,"DATOS ALUMNO/A"]
[]
[null,"Documento"]
[null,"de identidad:",null,null,null,null,null,null,null,null,"Número:"]
[]
[null,"Apellido1:",null,null,null,null,null,null,null,null,"Apellido 2:",null,null,null,null,null,null,null,null,"Nombre:"]
[]
[]
[null,"Dirección:"]
[]
[]
[null,"Población",null,null,null,null,null,null,null,null,null,null,"Provincia",null,null,null,null,null,null,null,"Código Postal"]
[]
[]
[null,"Télefono fijo:",null,null,null,null,null,"Télefono móvil:",null,null,null,null,null,null,"e-mail"]
[]
[]
[null,"CURSO EN EL QUE SE MATRICULA"]
[null,"NIVEL",null,null,null,null,null,"CURSO:",null,null,"TÍTULO:"]
[]
[]
[null,"CUOTA POR ENSEÑANZA REGLADA"]
[]
[]
[]
[]
[]
[]
[null,null,"Total a pagar:",null,null,null,{"$f":"IF(B25= \"C.F. GRADO MEDIO\",SUMIF(DATOS!$G$3:$G$4,\"verdadero\",DATOS!$H$3:$H$4),\"\")","v":""}]
[]
[null,"* (Cuota no obligatoria)"]
[null,null,null,null,null,null,null,null,null,null,null,null,null,null,null,"Total a pagar: ",null,null,null,{"$f":"IF(B25=\"C.F. GRADO SUPERIOR\",SUMIF(DATOS!$G$6:$G$10,\"verdadero\",DATOS!$H$6:$H$10),\"\")","v":""}]
[]
[null,"FORMA DE PAGO:"]
[null,"El pago se podrá realizar mediante transferencia bancaria o ingreso en efectivo a través de los cajeros automáticos disponibles en la oficinas del Banco Santander, a favor del siguiente número de cuenta: Banco Santander ES21 0075 0549 19 0600035384."]
[]
[]
[null,"OBLIGATORIAMENTE DEBERÁ INDICARSE EN EL CONCEPTO EL NOMBRE  DEL ALUMNO/A"]
[null,"DATOS PARA DOMICILIACIÓN BANCARIA"]
[null,"(Solo alumnos matriculados en C.F.Grado Superior)"]
[]
[null,"Entidad Bancaria"]
[]
[null,"Código IBAN",null,null,null,"Entidad",null,null,null,"sucursal",null,null,null,"dc",null,"código cuenta"]
[null,"E","S",{"$f":"IF(ISBLANK($V$50),\"\",MID($C$56,1,1))","v":""},{"$f":"IF(ISBLANK($V$50),\"\",MID($C$56,2,1))","v":""},null,null,null,null,null,null,null,null,{"$f":"IF($N$53=10,LEFT($N$53,1),IF($N$53=11,0,$N$53))","v":""},{"$f":"IF($O$53=10,LEFT($O$53,1),IF($O$53=11,0,$O$53))","v":""}]
[null,null,null,null,null,null,null,null,null,null,null,null,null,{"$f":"SUM(F50*4,G50*8,H50*5,I50*10)","v":0},{"$f":"SUM(P50*1,Q50*2,R50*4,S50*8,T50*5,U50*10,V50*9,W50*7,X50*3,Y50*6)","v":0}]
[null,null,null,null,null,null,null,null,null,null,null,null,null,{"$f":"SUM(J50*9,K50*7,L50*3,M50*6)","v":0}]
[null,null,null,null,{"$f":"CONCATENATE(B50,C50,D50,E50,E54)","v":"ES"},null,null,null,null,null,null,null,null,{"$f":"IF(ISBLANK($H$50),\"\",11-MOD(SUM($N$51,$N$52),11))","v":""},{"$f":"IF(ISBLANK($U$50),\"\",11-MOD($O$51,11))","v":""}]
[null,null,null,null,{"$f":"CONCATENATE(F50,G50,H50,I50,J50,K50,L50,M50,N50,O50,P50,Q50,R50,S50,T50,U50,V50,W50,X50,Y50)","v":""}]
[]
[null,null,{"$f":"RIGHT(0&98-MOD(MOD(MOD(MOD(MID(E54,1,8),97)&MID(E54,9,8),97)&MID(E54&142800,17,8),97)&MID(E54&142800,25,2),97),2)","v":{"$error":"#VALUE!"}},null,{"$f":"MOD(MOD(MOD(MOD(MID(E54,1,8),97)&MID(E54,9,8),97)&MID(E54&142800,17,8),97)&MID(E54&142821,25,2),97)","v":{"$error":"#VALUE!"}}]
[]
[]
[]
[]
[]
[null,null,null,null,null,null,null,null,null,null,null,null,null,null,null,"Valladolid a"]
[null,null,null,null,null,null,null,null,null,null,null,null,null,null,null,null,null,"Firma del Titular"]

{"sheet":"PAGO (2)","index":1,"n_rows":50,"n_cols":20,"rows_kept":50,"cut":false,"hidden":false,"merged":[[9,1,9,8],[9,10,9,17],[9,19,9,23],[37,18,37,23],[20,6,20,9],[12,1,12,5],[12,7,12,8],[12,10,12,23],[23,17,23,20]]}
[]
[]
[]
[]
[]
[]
[null,"DATOS ALUMNO/A"]
[]
[null,"Apellido1:",null,null,null,null,null,null,null,null,"Apellido 2:",null,null,null,null,null,null,null,null,"Nombre:"]
[null,{"$f":"IF(ISBLANK(PAGO!$B$12),\"\",PAGO!$B$12)","v":""},null,null,null,null,null,null,null,null,{"$f":"IF(ISBLANK(PAGO!$K$12),\"\",PAGO!$K$12)","v":""},null,null,null,null,null,null,null,null,{"$f":"IF(ISBLANK(PAGO!$T$12),\"\",PAGO!$T$12)","v":""}]
[null,"CURSO EN EL QUE SE MATRICULA"]
[null,"NIVEL",null,null,null,null,null,"CURSO:",null,null,"TÍTULO:"]
[null,{"$f":"IF(ISBLANK(PAGO!$B$25),\"\",PAGO!$B$25)","v":""},null,null,null,null,null,{"$f":"IF(ISBLANK(PAGO!H25),\"\",PAGO!H25)","v":""},null,null,{"$f":"IF(ISBLANK(PAGO!K25),\"\",PAGO!K25)","v":""}]
[]
[null,"CUOTA POR ENSEÑANZA REGLADA"]
[]
[]
[]
[]
[]
[null,null,"Total a pagar:",null,null,null,{"$f":"IF(PAGO!$B$25=\"C.F. GRADO MEDIO\",SUMIF(DATOS!$G$3:$G$4,\"verdadero\",DATOS!$H$3:$H$4),\"\")","v":""}]
[]
[]
[null,null,null,null,null,null,null,null,null,null,null,null,null,"Total a pagar:",null,null,null,{"$f":"IF(OR(PAGO!$B$25=\"BACHILLER\",PAGO!$B$25=\"C.F. GRADO SUPERIOR\"),SUMIF(DATOS!$G$6:$G$10,\"verdadero\",DATOS!$H$6:$H$10),\"\")","v":""}]
[]
[]
[]
[null,null,null,null,null,null,null,null,null,null,null,null,null,{"$f":"SUM(#REF!*4,#REF!*8,#REF!*5,#REF!*10)","v":{"$error":"#REF!"}},{"$f":"SUM(#REF!*1,#REF!*2,#REF!*4,#REF!*8,#REF!*5,#REF!*10,#REF!*9,#REF!*7,#REF!*3,#REF!*6)","v":{"$error":"#REF!"}}]
[null,null,null,null,null,null,null,null,null,null,null,null,null,{"$f":"SUM(#REF!*9,#REF!*7,#REF!*3,#REF!*6)","v":{"$error":"#REF!"}}]
[null,null,null,null,null,null,null,null,null,null,null,null,null,{"$f":"IF(ISBLANK(#REF!),\"\",11-MOD(SUM(N28,N29),11))","v":{"$error":"#REF!"}},{"$f":"IF(ISBLANK(#REF!),\"\",11-MOD(O28,11))","v":{"$error":"#REF!"}}]
[null,null,null,null,{"$f":"CONCATENATE(#REF!,#REF!,#REF!,#REF!,#REF!,#REF!,#REF!,#REF!,#REF!,#REF!,#REF!,#REF!,#REF!,#REF!,#REF!,#REF!,#REF!,#REF!,#REF!,#REF!)","v":{"$error":"#REF!"}}]
[]
[null,null,{"$f":"RIGHT(0&98-MOD(MOD(MOD(MOD(MID(E31,1,8),97)&MID(E31,9,8),97)&MID(E31&142800,17,8),97)&MID(E31&142800,25,2),97),2)","v":{"$error":"#REF!"}},null,{"$f":"MOD(MOD(MOD(MOD(MID(E31,1,8),97)&MID(E31,9,8),97)&MID(E31&142800,17,8),97)&MID(E31&142821,25,2),97)","v":{"$error":"#REF!"}}]
[null,"FORMA DE PAGO:"]
[null,"El pago se realizará por transferencia bancaría , en el siguiente número de cuenta"]
[null,null,null,null,"Banco Santander ES21 0075 0549 19 0600035384."]
[null,"OBLIGATORIAMENTE DEBERÁ INDICARSE EN EL CONCEPTO EL NOMBRE  DEL ALUMNO/A"]
[null,null,null,null,null,null,null,null,null,null,null,null,null,null,null,"Valladolid a",null,null,{"$f":"TODAY()","v":"2025-07-15"}]
[null,null,null,null,null,null,null,null,null,null,null,null,null,null,null,null,null,"Firma del Titular"]
[]
[]
[]
[]
[]
[]
[]
[]
[]
[]
[null,null,null,null,null,null,null,null,null,null,null,null,null,null,null,null,"Ejemplar para la Entidad Bancaria"]

{"sheet":"DATOS","index":2,"n_rows":22,"n_cols":8,"rows_kept":22,"cut":false,"hidden":false,"merged":[]}
["NIVEL","AÑO","TITULO",null,null,"Celdas vinculadas"]
["C.F. GRADO MEDIO","1º","Atención a Personas en Situación de Dependencia",null,null,"Nivel",1]
["C.F. GRADO SUPERIOR","2º","Gestión Administrativa",null,null,"FPB Y GM",false,1.1200000000000001]
[null,null,"Farmacia y Parafarmacia",null,null,null,false,40]
[null,null,"Sistemas Microinformáticos y Redes",null,null,"G.S. Y BACHILLER"]
[null,null,"Administración y Finanzas",null,null," <28",false,36.119999999999997]
[null,null,"Desarrollo Aplicaciones Multiplataforma",null,null,">28",false,35]
[null,null,"Educación Infantil",null,null,"1trimestre",false,105]
["DOCUMENTO",null,"Gestión de Ventas y Espacios Comerciales",null,null,"2trimestre",false,105]
["D.N.I.",null,"Guía, Información y Asistencia Turística",null,null,"3trimestre",false,105]
["N.I.E.",null,"Integración Social"]
[null,null,"Laboratorio Clínico y Biomédico"]
[]
[]
[]
["AÑO ACADÉMICO","2023/2024"]
[null,"2024/2025"]
[null,"2025/2026"]
[null,"2026/2027"]
[null,"2027/2028"]
[null,"2028/2029"]
[null,"2029/2030"]

{"sheet":"PROVINCIAS","index":3,"n_rows":54,"n_cols":1,"rows_kept":54,"cut":false,"hidden":false,"merged":[]}
["Provincia"]
[]
["Álava (Vitoria)"]
["Albacete"]
["Alicante"]
["Almería"]
["Asturias (Oviedo)"]
["Ávila"]
["Badajoz"]
["Baleares (Palma de Mallorca)"]
["Barcelona"]
["Burgos"]
["Cáceres"]
["Cádiz"]
["Cantabria (Santander)"]
["Castellón"]
["Ceuta"]
["Ciudad Real"]
["Córdoba"]
["Coruña"]
["Cuenca"]
["Gerona"]
["Granada"]
["Guadalajara"]
["Guipúzcoa (San Sebastián)"]
["Huelva"]
["Huesca"]
["Jaén"]
["La Rioja (Logroño)"]
["Las Palmas"]
["León"]
["Lérida"]
["Lugo"]
["Madrid"]
["Málaga"]
["Melilla"]
["Murcia"]
["Navarra (Pamplona)"]
["Orense"]
["Palencia"]
["Pontevedra"]
["Salamanca"]
["Santa Cruz de Tenerife"]
["Segovia"]
["Sevilla"]
["Soria"]
["Tarragona"]
["Teruel"]
["Toledo"]
["Valencia"]
["Valladolid"]
["Vizcaya (Bilbao)"]
["Zamora"]
["Zaragoza"]